bitfinex/quotes_ETHUSD_20251117
["timestamp","ask_amount","ask_price","bid_price","bid_amount"]
[1763387291361,0.1839,3125.0,3123.1,0.405504]
[1763387291678,0.4841,3124.9,3123.1,1.31249664]
[1763387291990,0.4841,3124.9,3123.1,0.90699264]
[1763387294981,0.1839,3125.0,3123.2,0.405504]
[1763387295177,0.668,3125.3,3123.2,0.405504]
[1763387295355,0.1839,3125.3,3123.2,0.405504]
[1763387295558,0.1839,3125.3,3123.4,0.405504]
[1763387296651,0.668,3125.3,3123.4,0.405504]
[1763387296853,0.668,3125.3,3123.0,8.8220189]
[1763387296854,0.76719999,3125.3,3123.0,5.62002516]
[1763387297176,0.4841,3125.2,3123.1,0.96750652]
[1763387297379,0.4841,3125.2,3123.1,1.87449916]
[1763387297590,0.1839,3125.3,3123.1,1.87449916]
[1763387297891,0.1839,3125.3,3123.3,0.405504]
[1763387298121,0.6392,3125.3,3123.2,0.405504]
[1763387298323,0.6392,3125.3,3123.3,0.18744992]
[1763387298884,0.1949,3125.4,3123.4,3.20163923]
[1763387299087,0.4553,3125.8,3123.5,1.31249664]
[1763387299590,0.4553,3125.8,3123.5,0.405504]
[1763387301125,0.4553,3125.8,3123.7,0.405504]
[1763387301481,0.4553,3125.8,3123.5,0.405504]
[1763387301712,0.4553,3125.8,3123.4,1.31249664]
[1763387301910,0.4553,3125.8,3123.5,0.47016274]
[1763387302984,0.4553,3125.8,3123.6,0.90699264]
[1763387303185,0.4545,3125.8,3123.5,0.47016274]
[1763387303385,0.4545,3125.8,3123.5,1.37715538]
[1763387303689,0.09919999,3125.3,3123.5,0.47016274]
[1763387303900,0.13919103,3125.7,3123.3,0.18744992]
[1763387304223,0.13919103,3125.7,3123.1,1.31249664]
[1763387304411,0.09919999,3125.3,3123.1,0.405504]
[1763387304609,0.14118975,3125.8,3123.1,0.405504]
[1763387304811,0.002,3125.8,3123.1,1.31249664]
[1763387305121,0.09919999,3125.4,3123.2,0.90699264]
[1763387305308,0.4553,3125.3,3123.3,0.45144238]
[1763387305936,0.4553,3125.3,3122.7,2.27556223]
[1763387306139,0.13919743,3125.2,3122.5,2.27556223]
[1763387306293,0.09919999,3124.6,3122.3,2.27556223]
[1763387306492,0.6502,3124.5,3122.4,0.22755622]
[1763387306894,0.4553,3124.4,3122.4,0.22755622]
[1763387307230,0.4553,3124.4,3122.3,0.90699264]
[1763387307429,0.4553,3124.4,3122.4,0.405504]
[1763387308722,0.4553,3124.4,3122.2,0.405504]
[1763387308898,0.4553,3124.4,3123.1,0.90699264]
[1763387311491,0.002,3125.8,3123.6,6.22723332]
[1763387311492,0.1845,3124.8,3123.6,6.22723332]
[1763387311690,0.4926,3125.1,3123.7,1.52971597]
[1763387311691,0.1845,3125.0,3123.7,1.52971597]
[1763387312105,0.002,3125.8,3123.7,1.52971597]
[1763387312106,0.1845,3125.3,3123.7,1.52971597]
[1763387312630,0.4926,3125.2,3123.7,1.52971597]
[1763387312928,0.1845,3125.3,3123.8,0.77569493]
[1763387313339,0.4926,3125.7,3124.3,0.90699264]
[1763387315561,0.1845,3124.4,3123.8,0.77569493]
[1763387315712,0.09919999,3125.5,3123.0,0.41017562]
[1763387316053,0.1845,3124.5,3123.4,0.90699264]
[1763387316349,0.1845,3124.5,3123.5,0.7134226]
[1763387317108,0.6771,3124.5,3123.5,0.7134226]
[1763387317453,0.1845,3124.5,3123.5,0.7134226]
[1763387319122,0.09919999,3124.3,3123.5,0.7134226]
[1763387319321,0.1845,3124.5,3123.5,0.7134226]
[1763387319541,0.1845,3124.5,3122.7,2.27556223]
[1763387319542,0.4926,3124.3,3122.7,6.22723332]
[1763387319731,0.4926,3124.3,3122.8,0.90699264]
[1763387320320,0.4926,3124.3,3122.7,6.22723332]
[1763387320522,0.4926,3124.3,3123.3,6.22723332]
[1763387320852,0.4926,3124.3,3123.4,1.52971597]
[1763387321219,0.1845,3124.5,3123.4,1.52971597]
[1763387321442,0.1845,3124.8,3123.4,1.52971597]
[1763387321654,0.1845,3124.8,3124.0,0.90699264]
[1763387322464,0.09919999,3125.2,3124.0,0.90699264]
[1763387322465,0.1845,3124.9,3124.0,0.90699264]
[1763387322657,0.6771,3124.9,3124.1,0.7134226]
[1763387323644,0.1845,3124.9,3124.1,0.7134226]
[1763387324143,0.6771,3124.9,3124.1,0.7134226]
[1763387324858,0.1845,3124.9,3124.1,0.7134226]
[1763387325036,0.4926,3124.8,3123.6,6.22723332]
[1763387325963,0.1845,3124.9,3123.6,6.22723332]
[1763387326324,0.1837,3124.9,3123.6,6.22723332]
[1763387327359,0.1837,3124.9,3123.7,0.90699264]
[1763387327554,0.1845,3125.2,3124.2,6.22723332]
[1763387327858,0.6771,3125.2,3124.3,0.62272333]
[1763387328628,0.4926,3125.1,3124.3,0.62272333]
[1763387328869,0.4926,3125.1,3123.7,3.18255487]
[1763387329378,0.4926,3125.1,3123.8,2.27556223]
[1763387329582,0.4926,3125.1,3124.0,6.22723332]
[1763387329739,0.1845,3125.2,3124.0,6.22723332]
[1763387329941,0.6771,3125.2,3124.1,0.90699264]
[1763387330165,0.6771,3125.2,3124.2,0.7134226]
[1763387331244,0.4946,3125.8,3124.6,6.22723332]
[1763387332583,0.4946,3125.8,3125.2,6.22723332]
[1763387332584,0.002,3125.8,3125.2,6.22723332]
[1763387333146,0.002,3125.8,3125.3,0.90699264]
[1763387333442,0.002,3125.8,3125.4,0.7134226]
[1763387334643,0.002,3125.9,3125.4,0.7134226]
[1763387334847,0.002,3126.3,3125.9,0.90699264]
[1763387336245,0.002,3126.3,3125.8,6.22723332]
[1763387336710,0.28369999,3125.9,3124.7,2.27556223]
[1763387337003,0.09919999,3125.4,3124.2,0.7134226]
[1763387337162,0.1845,3124.8,3124.2,0.7134226]
[1763387337567,0.1845,3124.8,3124.2,1.62041524]
[1763387338092,0.1845,3124.8,3124.2,0.7134226]
[1763387338255,0.1845,3124.8,3124.3,0.69406559]
[1763387339513,0.4869,3124.7,3124.3,0.69406559]
[1763387340011,0.4869,3124.7,3123.4,0.62372333]
[1763387340012,0.4869,3124.7,3123.6,6.22723332]
[1763387340605,0.4869,3124.7,3123.7,0.90699264]
[1763387340804,0.1837,3123.7,3123.4,0.001]
[1763387341212,0.1837,3123.7,3122.2,2.27556223]
[1763387341213,0.4869,3123.6,3122.1,2.27556223]
[1763387341413,0.4869,3123.6,3122.0,0.16310374]
[1763387341414,0.09919999,3122.3,3122.0,0.16310374]
[1763387341710,0.4869,3122.3,3121.8,0.001]
[1763387341918,0.4869,3123.0,3121.8,0.90799264]
[1763387342120,0.4869,3123.0,3122.3,6.22723332]
[1763387342411,0.58609999,3123.0,3121.8,0.90799264]
[1763387342616,0.4869,3123.0,3121.8,0.90799264]
[1763387342915,0.58609999,3123.0,3121.8,0.001]
[1763387343301,0.09919999,3122.7,3121.8,0.001]
[1763387343498,0.1837,3121.9,3120.3,6.22723332]
[1763387343800,0.28289999,3121.9,3120.9,6.22723332]
[1763387344007,0.4869,3121.8,3120.9,6.22723332]
[1763387344401,0.4869,3121.8,3120.4,6.22723332]
[1763387344601,0.28289999,3121.9,3120.4,6.22723332]
[1763387344602,0.1837,3121.9,3120.4,6.22723332]
[1763387344922,0.1837,3124.0,3121.1,0.90699264]
[1763387344923,0.1837,3122.3,3121.1,0.90699264]
[1763387345093,0.1837,3122.3,3121.4,0.001]
[1763387345469,0.4869,3122.7,3121.6,6.22723332]
[1763387345780,0.1837,3122.7,3121.7,1.52981597]
[1763387346307,0.1837,3122.7,3121.7,0.62282333]
[1763387346308,0.4869,3122.6,3121.7,0.62282333]
[1763387346614,0.4869,3122.6,3121.4,0.001]
[1763387347317,0.1837,3122.7,3121.9,6.22723332]
[1763387348107,0.09919999,3123.5,3122.5,6.22723332]
[1763387348312,0.6706,3123.7,3122.5,6.22723332]
[1763387348313,0.6706,3123.7,3122.6,1.52971597]
[1763387348612,0.4869,3123.6,3122.6,1.52971597]
[1763387349011,0.1837,3124.0,3123.1,6.22723332]
[1763387349310,0.1829,3124.0,3123.1,6.22723332]
[1763387349613,0.1829,3124.0,3122.6,0.62272333]
[1763387349614,0.6698,3124.0,3122.6,0.62272333]
[1763387349814,0.6698,3124.0,3121.5,2.27656223]
[1763387349815,0.1837,3122.7,3121.5,6.22823332]
[1763387350376,0.4869,3122.6,3121.5,6.22823332]
[1763387350810,0.1837,3122.7,3121.5,6.22823332]
[1763387351178,0.6706,3122.7,3121.5,6.22823332]
[1763387351380,0.09919999,3122.5,3121.6,0.62292333]
[1763387351611,0.1837,3121.6,3121.5,0.001]
[1763387351800,0.6706,3121.6,3121.5,0.001]
[1763387352001,0.1837,3121.6,3121.5,0.001]
[1763387352309,0.6706,3121.6,3121.5,0.001]
[1763387353080,0.1837,3122.1,3121.5,0.001]
[1763387354526,0.58609999,3122.0,3121.5,0.001]
[1763387354731,0.4869,3122.0,3121.5,0.001]
[1763387355294,0.58609999,3122.0,3121.5,0.001]
[1763387357330,0.09919999,3121.6,3121.5,0.001]
[1763387357695,0.58559999,3121.6,3121.5,0.001]
[1763387358039,0.58559999,3121.6,3121.4,0.001]
[1763387358040,0.09919999,3121.0,3119.1,0.005]
[1763387358210,0.09919999,3120.2,3119.1,0.005]
[1763387358602,0.4864,3120.1,3119.1,0.005]
[1763387358805,0.4864,3120.1,3119.2,6.10592987]
[1763387359130,0.4864,3120.1,3119.1,0.005]
[1763387359131,0.09919999,3119.9,3119.1,0.005]
[1763387359428,0.09919999,3119.6,3119.1,0.005]
[1763387359845,0.58559999,3119.6,3119.1,0.005]
[1763387360060,0.09919999,3120.2,3119.1,0.005]
[1763387360339,0.6796,3120.3,3119.3,6.10592987]
[1763387360556,0.6796,3120.3,3119.4,0.61059299]
[1763387360846,0.1932,3120.6,3119.4,0.61059299]
[1763387361013,0.09919999,3120.3,3119.4,1.51758563]
[1763387361833,0.4864,3120.2,3119.4,1.51758563]
[1763387362251,0.4864,3120.2,3119.1,0.005]
[1763387362252,0.09919999,3119.5,3119.1,0.005]
[1763387362826,0.4864,3119.4,3119.1,0.005]
[1763387364258,0.09919999,3119.5,3119.1,0.005]
[1763387364475,0.09919999,3120.6,3119.1,0.91199264]
[1763387364627,0.1932,3121.0,3120.3,6.10592987]
[1763387365034,0.09919999,3120.9,3120.3,6.10592987]
[1763387365249,0.09919999,3120.9,3120.0,0.90699264]
[1763387365649,0.09919999,3121.4,3120.4,6.10592987]
[1763387365861,0.002,3122.6,3120.4,6.10592987]
[1763387365862,0.4864,3121.7,3120.4,6.10592987]
[1763387366063,0.09919999,3120.9,3120.5,0.61059299]
[1763387366243,0.4864,3121.6,3120.5,0.61059299]
[1763387366841,0.09919999,3120.9,3120.5,0.61059299]
[1763387367037,0.09919999,3121.4,3119.8,0.90699264]
[1763387367238,0.4864,3121.6,3119.1,0.005]
[1763387367239,0.09919999,3120.6,3119.1,0.005]
[1763387367549,0.09919999,3120.9,3119.7,0.90699264]
[1763387367929,0.29309999,3120.9,3119.3,0.90699264]
[1763387368564,0.1939,3120.9,3119.3,0.90699264]
[1763387368752,0.1939,3120.9,3119.4,0.65336909]
[1763387368959,0.09919999,3121.1,3119.5,0.405504]
[1763387369465,0.4502,3121.6,3119.5,0.405504]
[1763387370058,0.09919999,3121.6,3120.0,0.90699264]
[1763387370267,0.09919999,3121.0,3120.1,0.65336909]
[1763387370645,0.09919999,3121.0,3119.4,0.65336909]
[1763387370646,0.6441,3120.9,3119.4,0.65336909]
[1763387370896,0.09919999,3120.5,3119.0,6.53469093]
[1763387371182,0.09919999,3120.5,3119.0,0.001]
[1763387371870,0.09919999,3120.2,3119.0,0.001]
[1763387372375,0.4494,3120.4,3119.0,0.001]
[1763387372949,0.09919999,3120.3,3119.0,0.001]
[1763387373681,0.09919999,3120.0,3119.0,0.001]
[1763387374197,0.1939,3119.9,3119.0,0.001]
[1763387374565,0.4502,3119.8,3119.0,0.001]
[1763387375553,0.09919999,3119.7,3119.0,0.001]
[1763387375963,0.09919999,3119.2,3119.0,0.001]
[1763387376563,0.54939999,3119.2,3119.0,0.001]
[1763387381463,0.09919999,3119.4,3119.0,0.001]
[1763387381772,0.4502,3119.6,3119.0,0.001]
[1763387381773,0.09919999,3119.2,3119.0,0.001]
[1763387382298,0.09919999,3117.9,3117.1,0.005]
[1763387382465,0.09919999,3117.9,3117.2,0.16165865]
[1763387382466,1e-08,3117.9,3117.2,0.16165865]
[1763387382654,0.1939,3118.2,3117.2,0.16165865]
[1763387382856,0.1939,3119.0,3117.4,5.62669829]
[1763387383082,0.1939,3119.0,3117.5,1.46966247]
[1763387383398,0.1939,3118.9,3117.5,0.56266983]
[1763387384094,0.4502,3118.8,3117.5,2.17653247]
[1763387384497,0.4502,3118.8,3118.7,0.001]
[1763387385697,0.4502,3118.8,3116.5,5.62669829]
[1763387385900,0.0400808,3118.7,3116.5,5.62669829]
[1763387386101,0.0400808,3118.7,3116.1,0.17255949]
[1763387386303,0.855704,3118.6,3118.4,0.001]
[1763387386599,0.405504,3118.4,3116.1,0.17255949]
[1763387386801,0.6902819,3118.4,3116.1,0.17255949]
[1763387387005,0.1939,3116.2,3116.1,0.005]
[1763387387168,1.72631667,3118.8,3116.1,0.005]
[1763387387169,0.1939,3116.4,3116.1,0.005]
[1763387387364,1.26952403,3118.7,3116.1,6.12435462]
[1763387387697,1.26952403,3118.7,3116.2,6.73179008]
[1763387387698,0.1939,3117.3,3116.2,6.73179008]
[1763387388099,0.6441,3117.3,3116.2,6.73179008]
[1763387388312,0.6441,3117.3,3116.1,0.005]
[1763387388864,0.1939,3117.6,3116.1,0.005]
[1763387389073,0.23397823,3118.9,3116.7,6.11935462]
[1763387389074,0.09715732,3117.2,3116.7,6.11935462]
[1763387389299,0.09715732,3117.2,3117.1,6.11935462]
[1763387389860,0.09715732,3117.2,3117.1,7.02634726]
[1763387390065,0.09715732,3117.2,3117.1,7.72898199]
[1763387390289,0.09715732,3117.2,3117.1,0.70263473]
[1763387390479,0.09715732,3117.2,3116.5,0.90699264]
[1763387391300,0.09715732,3117.2,3116.9,6.11935462]
[1763387392370,0.09715732,3117.2,3116.5,0.90699264]
[1763387392599,0.09715732,3117.2,3116.6,0.70263473]
[1763387392974,0.09715732,3117.2,3116.4,6.11935462]
[1763387393279,0.09715732,3117.2,3116.9,6.11935462]
[1763387393691,0.09715732,3117.2,3116.4,6.11935462]
[1763387394009,0.09715732,3117.2,3116.2,6.11935462]
[1763387394210,0.09715732,3117.2,3116.1,0.005]
[1763387394211,0.54735732,3117.2,3116.1,0.005]
[1763387395313,0.09715732,3117.2,3116.4,6.11935462]
[1763387395472,0.09635732,3117.2,3116.5,1.31249664]
[1763387396671,0.54655732,3117.2,3116.5,0.90699264]
[1763387396876,0.54655732,3117.2,3116.1,0.005]
[1763387397107,0.54655732,3117.2,3116.2,0.16768919]
[1763387397688,0.54655732,3117.2,3116.1,0.005]
[1763387400256,0.09635732,3117.2,3116.4,6.11935462]
[1763387400438,0.4565,3117.1,3116.1,0.91199264]
[1763387400640,0.4565,3117.1,3116.1,0.005]
[1763387401415,0.04010266,3117.0,3116.1,0.005]
[1763387401613,0.4565,3117.1,3116.1,0.005]
[1763387401958,0.4565,3117.0,3116.1,0.005]
[1763387402616,0.04010394,3116.9,3116.1,0.005]
[1763387402816,0.4565,3117.0,3116.1,0.005]
[1763387403072,0.4565,3116.9,3116.1,0.005]
[1763387403390,0.4565,3116.9,3115.1,0.005]
[1763387403391,0.1936,3115.8,3115.1,0.005]
[1763387403557,0.1936,3115.8,3113.1,0.005]
[1763387403558,0.04011939,3115.7,3113.8,1.68213782]
[1763387403712,0.1936,3114.7,3113.8,1.68213782]
[1763387403911,0.1936,3114.7,3113.7,1.66087989]
[1763387404154,0.6501,3114.7,3113.7,1.66087989]
[1763387404563,0.1936,3114.7,3114.2,0.0008]
[1763387404763,0.4565,3114.6,3113.8,1.68213782]
[1763387404962,0.4565,3114.6,3113.5,7.74125191]
[1763387405248,0.4565,3114.6,3113.1,0.005]
[1763387405249,0.4565,3114.6,3113.1,6.12435462]
[1763387405571,0.09635732,3114.5,3113.1,0.005]
[1763387405720,0.13649217,3114.5,3113.1,0.005]
[1763387405923,0.1936,3113.2,3113.1,0.005]
[1763387406125,0.1936,3114.0,3113.1,0.005]
[1763387406379,0.1936,3113.7,3113.1,0.005]
[1763387406674,0.6501,3114.0,3113.1,6.12435462]
[1763387406981,0.6501,3114.0,3113.2,0.61243546]
[1763387406982,0.1936,3114.0,3113.2,0.61243546]
[1763387407195,0.4565,3113.9,3113.1,0.005]
[1763387407340,0.1936,3114.0,3113.1,0.005]
[1763387407660,0.04014258,3113.9,3113.1,0.005]
[1763387407839,0.6501,3114.0,3113.1,0.005]
[1763387408041,0.55285732,3113.9,3113.1,0.005]
[1763387413009,0.09635732,3113.9,3113.1,0.005]
[1763387414144,0.4565,3113.8,3113.1,0.005]
[1763387414372,0.4565,3113.8,3112.1,0.005]
[1763387414373,0.04014516,3113.7,3112.1,0.005]
[1763387414683,0.90699264,3113.4,3112.1,0.005]
[1763387414891,0.74278505,3113.3,3112.1,0.005]
[1763387415098,1.19928505,3113.3,3110.6,7.7424917]
[1763387415299,0.4565,3113.2,3112.0,99.0]
[1763387415449,0.49665161,3113.2,3112.0,99.0]
[1763387415955,0.405504,3113.1,3112.0,99.0]
[1763387416150,0.405504,3112.9,3112.0,99.0]
[1763387416588,0.405504,3112.7,3112.0,97.30076082]
[1763387416771,0.405504,3112.7,3112.0,90.48175126]
[1763387416772,7.43185126,3112.1,3112.0,90.48175126]
[1763387416978,1.31249664,3112.1,3112.0,90.48175126]
[1763387417213,7.88835126,3112.1,3112.0,84.81591369]
[1763387417485,7.88835126,3112.1,3112.0,82.08043125]
[1763387418083,7.48284726,3112.1,3112.0,82.08043125]
[1763387418456,7.48204726,3112.1,3112.0,82.08043125]
[1763387418651,1.36269264,3112.1,3112.0,82.08043125]
[1763387418862,1.76819664,3112.1,3112.0,82.08043125]
[1763387419169,1.76819664,3112.1,3112.0,59.42406315]
[1763387419363,2.19192066,3112.1,3112.0,54.77082071]
[1763387419563,2.58912706,3112.1,3112.0,53.04419887]
[1763387419778,2.8717948,3112.1,3112.0,52.64505519]
[1763387420106,2.96286057,3112.1,3112.0,52.64505519]
[1763387420286,2.96286057,3112.1,3112.0,47.57442697]
[1763387420589,1.76819664,3112.1,3112.0,47.57442697]
[1763387420795,1.36269264,3112.1,3112.0,47.57442697]
[1763387421156,0.4565,3112.1,3112.0,47.57442697]
[1763387422981,0.4547,3112.7,3112.0,47.57442697]
[1763387423693,0.4547,3112.7,3112.0,50.69396777]
[1763387423989,0.04014387,3113.8,3112.0,50.69396777]
[1763387424289,0.4547,3112.9,3112.0,50.69396777]
[1763387424497,0.04015677,3112.8,3112.0,47.57442697]
[1763387424967,0.4547,3112.7,3112.0,47.57442697]
[1763387425150,0.4547,3112.7,3112.0,47.57542697]
[1763387425350,0.04015935,3112.6,3112.0,47.57542697]
[1763387425577,0.4547,3112.7,3112.0,47.57542697]
[1763387425796,0.49485935,3112.6,3112.0,47.57542697]
[1763387426095,0.04015935,3112.5,3112.0,47.57542697]
[1763387426595,0.4547,3112.4,3112.0,47.57542697]
[1763387426955,0.04015935,3112.3,3112.0,47.57542697]
[1763387427289,0.4547,3112.2,3112.0,47.57542697]
[1763387428378,0.04015935,3112.1,3112.0,47.57542697]
[1763387428565,0.4547,3112.2,3112.0,47.57542697]
[1763387428755,0.04015677,3112.8,3112.0,47.57542697]
[1763387428756,0.4544,3112.1,3112.0,47.57542697]
[1763387431904,1.36139264,3112.1,3112.0,47.57542697]
[1763387432109,5.42653181,3112.1,3112.0,47.57542697]
[1763387432263,0.4544,3112.1,3112.0,47.57542697]
[1763387433805,3.8324,3112.1,3112.0,47.57542697]
[1763387434117,1.36139264,3112.1,3112.0,47.57542697]
[1763387435265,4.77955199,3112.1,3112.0,47.57542697]
[1763387435492,5.02208166,3112.1,3112.0,47.57542697]
[1763387435695,5.67351455,3112.1,3112.0,47.57542697]
[1763387436506,2.29551455,3112.1,3112.0,47.57542697]
[1763387436819,0.4544,3112.1,3112.0,47.57542697]
[1763387437525,0.4544,3112.1,3112.0,47.0513873]
[1763387437526,4.11527865,3112.1,3112.0,47.0513873]
[1763387437684,2.29590412,3112.1,3112.0,47.0513873]
[1763387438112,0.4544,3112.1,3112.0,47.0513873]
[1763387438320,0.4544,3112.1,3112.0,46.8201373]
[1763387439519,0.73769504,3112.1,3112.0,46.8201373]
[1763387439822,1.39009947,3112.1,3112.0,46.8201373]
[1763387440000,0.49455935,3112.1,3112.0,46.8201373]
[1763387440336,0.73785988,3112.1,3112.0,46.8201373]
[1763387441309,1.18352323,3112.1,3112.0,46.8201373]
[1763387441508,0.73705988,3112.1,3112.0,46.8201373]
[1763387441914,0.4536,3112.1,3112.0,46.8201373]
[1763387442426,0.7375544,3112.1,3112.0,46.8201373]
[1763387442841,1.0329544,3112.1,3112.0,46.8201373]
[1763387443198,2.1312789,3112.1,3112.0,46.8201373]
[1763387443633,3.41272601,3112.1,3112.0,46.8201373]
[1763387444139,1.686652,3112.1,3112.0,46.8201373]
[1763387444286,1.10716332,3112.1,3112.0,46.8201373]
[1763387444493,0.2859544,3112.1,3112.0,46.8201373]
[1763387444698,0.7495,3112.1,3112.0,46.8201373]
[1763387445036,0.5829544,3112.1,3112.0,46.8201373]
[1763387445240,0.299,3112.1,3112.0,46.8201373]
[1763387445452,0.2859544,3112.1,3112.0,46.8201373]
[1763387445739,0.7403544,3112.1,3112.0,46.8201373]
[1763387446237,1.10716332,3112.1,3112.0,46.8201373]
[1763387446448,0.2859544,3112.1,3112.0,46.8201373]
[1763387446802,0.4564,3112.1,3112.0,46.8201373]
[1763387447004,0.82320892,3112.1,3112.0,46.8201373]
[1763387447235,1.10845294,3112.1,3112.0,46.8201373]
[1763387447448,1.38556852,3112.1,3112.0,46.8201373]
[1763387447744,1.1100976,3112.1,3112.0,46.8201373]
[1763387448034,0.2966,3112.1,3112.0,46.8201373]
[1763387448240,0.002,3112.1,3112.0,46.8201373]
[1763387448403,0.002,3112.1,3112.0,47.7734373]
[1763387449041,0.002,3112.1,3112.0,47.2921373]
[1763387449253,0.002,3112.1,3112.0,46.8201373]
[1763387449410,0.002,3112.1,3112.0,47.7734373]
[1763387449739,0.002,3112.1,3112.0,46.8201373]
[1763387449940,0.002,3112.1,3112.0,47.2921373]
[1763387450146,0.002,3112.1,3112.0,46.8201373]
[1763387450439,1.1003245,3112.1,3112.0,46.8201373]
[1763387450604,0.002,3112.1,3112.0,46.8201373]
[1763387451514,0.2966,3112.1,3112.0,46.8201373]
[1763387451842,0.6556976,3112.1,3112.0,46.8201373]
[1763387452040,0.78955935,3112.1,3112.0,46.8201373]
[1763387452241,1.6115174,3112.1,3112.0,46.8201373]
[1763387452428,1.77227135,3112.1,3112.0,46.8201373]
[1763387452615,0.82397375,3112.1,3112.0,46.8201373]
[1763387452819,0.002,3112.1,3112.0,46.8201373]
[1763387453115,0.002,3112.1,3112.0,47.7734373]
[1763387453315,0.6536976,3112.5,3112.0,50.8929781]
[1763387453518,1.0983245,3113.1,3112.5,0.1904]
[1763387453519,0.65798803,3112.8,3112.5,0.1904]
[1763387453721,0.82197375,3113.1,3112.5,0.1904]
[1763387453919,0.65798803,3113.3,3113.0,0.472]
[1763387454156,1.84094742,3114.0,3113.2,0.6624]
[1763387454157,0.65798803,3113.5,3113.2,0.6624]
[1763387454448,0.82197375,3113.9,3113.2,0.6624]
[1763387454635,1.4798422,3114.0,3113.2,0.6624]
[1763387454835,0.04014387,3113.8,3113.2,1.1437]
[1763387455726,0.82197375,3114.1,3113.2,1.1437]
[1763387455986,0.04014129,3114.0,3113.2,1.1437]
[1763387456308,0.04014129,3114.0,3113.3,0.4813]
[1763387456835,0.04013871,3114.2,3113.3,0.4813]
[1763387457159,2.21059295,3114.5,3113.3,0.4813]
[1763387457160,0.04014258,3113.9,3113.3,0.4813]
[1763387457309,0.49453485,3114.5,3113.3,0.4813]
[1763387457510,0.04013743,3114.3,3113.3,0.4813]
[1763387458108,0.04013743,3114.3,3113.2,0.1904]
[1763387458319,0.4788,3114.2,3113.2,0.4814]
[1763387458523,0.51893871,3114.2,3113.2,0.4814]
[1763387458719,0.65786845,3114.4,3113.2,0.4814]
[1763387458905,0.4788,3114.4,3113.2,0.4814]
[1763387459133,0.51893743,3114.3,3113.1,0.1938]
[1763387459860,0.04013743,3114.3,3113.2,0.4814]
[1763387460064,0.51893871,3114.2,3113.1,0.1938]
[1763387460664,0.2733,3113.2,3112.0,46.8201373]
[1763387460959,0.0877,3112.1,3112.0,46.8201373]
[1763387461159,0.65786845,3112.8,3112.1,0.1938]
[1763387461360,0.1866,3113.2,3112.1,0.1938]
[1763387461534,0.22674903,3113.4,3112.1,0.6752]
[1763387461734,0.51895161,3113.2,3112.1,0.1938]
[1763387461952,0.4788,3113.2,3112.1,0.1938]
[1763387462148,0.4788,3113.2,3112.0,46.8201373]
[1763387462149,0.0401529,3113.1,3112.0,46.8201373]
[1763387462356,0.51895161,3113.2,3112.1,0.1938]
[1763387462556,0.51895161,3113.2,3112.0,46.8201373]
[1763387463260,0.51895161,3113.2,3112.1,0.1938]
[1763387463968,0.51895161,3113.2,3112.0,46.8201373]
[1763387464171,0.2773,3112.1,3112.0,46.8201373]
[1763387464471,0.51815161,3113.2,3112.0,46.8201373]
[1763387464633,0.04015161,3113.2,3112.0,46.8201373]
[1763387464974,0.4687,3112.1,3112.0,46.8201373]
[1763387465674,0.69460113,3113.0,3112.0,46.8201373]
[1763387465879,0.90699264,3113.1,3112.1,0.1938]
[1763387465880,0.65444694,3113.1,3112.1,0.1938]
[1763387466036,0.04015419,3113.0,3112.1,0.1938]
[1763387466397,0.04015032,3113.3,3112.1,0.6752]
[1763387466536,0.1866,3113.8,3112.1,3.7947408]
[1763387466871,0.65495961,3114.2,3112.2,0.4814]
[1763387467169,0.4788,3114.2,3112.2,0.4814]
[1763387467371,0.51894,3114.1,3112.3,0.37947408]
[1763387467599,0.51894,3114.1,3112.3,0.86087408]
[1763387467747,0.51894,3114.1,3112.3,0.4814]
[1763387468081,0.51894,3114.1,3112.4,0.4814]
[1763387468739,0.51894,3114.1,3112.1,0.1938]
[1763387469142,3.783504,3114.0,3112.1,0.1938]
[1763387469363,0.04014258,3113.9,3112.2,0.4814]
[1763387469548,0.04014387,3113.8,3112.2,0.4814]
[1763387469852,0.04014387,3113.8,3112.2,2.85269972]
[1763387470050,0.6654,3113.9,3112.2,2.85269972]
[1763387470379,0.04014387,3113.8,3112.3,0.4814]
[1763387470872,0.51894387,3113.8,3112.1,0.1938]
[1763387471351,0.51894387,3113.8,3112.1,0.6752]
[1763387471675,0.51894387,3113.8,3112.2,0.4814]
[1763387472236,0.51894387,3113.8,3112.1,0.1938]
[1763387472641,0.51894387,3113.8,3112.0,46.8201373]
[1763387472642,0.405504,3113.7,3112.0,46.8201373]
[1763387472944,0.04014645,3113.6,3112.1,0.1938]
[1763387473368,0.4788,3113.5,3112.1,0.1938]
[1763387473672,0.04014903,3113.4,3112.1,0.6752]
[1763387474285,0.04014903,3113.4,3112.2,0.4814]
[1763387474440,0.04014774,3113.5,3112.2,0.4814]
[1763387475061,0.04014516,3113.7,3112.2,0.4814]
[1763387475575,0.22674258,3113.9,3112.2,1.02325301]
[1763387475786,0.04014387,3113.8,3112.2,1.02325301]
[1763387476089,0.1866,3113.9,3112.3,0.4814]
[1763387476290,0.04014387,3113.8,3112.3,0.4814]
[1763387476659,0.51894387,3113.8,3112.3,0.4814]
[1763387476894,0.6654,3113.9,3112.3,0.4814]
[1763387477090,0.51894387,3113.8,3112.3,0.4814]
[1763387477259,0.04014516,3113.7,3112.3,0.4814]
[1763387477693,0.52614516,3113.7,3112.3,0.4814]
[1763387477995,0.52614516,3113.7,3112.1,0.1938]
[1763387478193,0.04014645,3113.6,3112.4,0.4777]
[1763387478911,0.22674258,3113.9,3112.4,0.4777]
[1763387479062,0.1866,3113.9,3112.4,0.4777]
[1763387479463,0.04014387,3113.8,3112.4,0.4777]
[1763387479660,0.94713651,3113.8,3112.1,0.1938]
[1763387479895,0.486,3113.7,3112.1,0.1938]
[1763387480100,0.94713909,3113.6,3112.1,0.1938]
[1763387480305,1.60223246,3113.6,3112.1,0.1938]
[1763387480466,4.28499264,3113.3,3112.0,46.8201373]
[1763387480673,0.65509337,3113.2,3112.1,0.1817]
[1763387480972,1.14111107,3113.2,3112.0,46.8201373]
[1763387481176,0.486,3113.1,3112.0,46.8201373]
[1763387481365,0.2694,3112.1,3112.0,46.8201373]
[1763387481765,0.486,3112.8,3112.0,46.8201373]
[1763387482164,0.04015806,3112.7,3112.0,46.8201373]